bitfinex/quotes_SOLUSD_20240908
["timestamp","ask_amount","ask_price","bid_price","bid_amount"]
[1725831019308,23.26,129.39,129.27,6.5579]
[1725831019595,6.1859,129.33,129.27,6.5579]
[1725831019784,46.93383614,129.32,129.27,6.5579]
[1725831020880,46.93383219,129.33,129.27,6.5579]
[1725831021082,1.93373867,129.36,129.27,6.5579]
[1725831021301,1.93349714,129.36,129.27,16.21345358]
[1725831021478,1.93341581,129.35,129.27,16.21345358]
[1725831021702,66.93341581,129.35,129.27,16.21345358]
[1725831022270,73.11811581,129.35,129.27,16.21345358]
[1725831022474,71.1847,129.35,129.27,16.21345358]
[1725831022678,1.9334733,129.34,129.27,16.21345358]
[1725831022901,46.9334733,129.34,129.27,16.21345358]
[1725831023085,45.0,129.34,129.27,16.21345358]
[1725831023283,20.0,129.35,129.27,16.21345358]
[1725831023487,1.93338793,129.34,129.27,16.21345358]
[1725831024111,1.93338793,129.34,129.27,6.5579]
[1725831024272,21.93338793,129.34,129.27,16.21345358]
[1725831025038,20.0,129.34,129.27,16.21345358]
[1725831026509,20.0,129.34,129.27,6.5579]
[1725831026675,46.93331086,129.33,129.27,6.5579]
[1725831026874,1.93385689,129.32,129.27,6.5579]
[1725831028894,46.93379571,129.33,129.27,6.5579]
[1725831029697,45.0,129.33,129.27,6.5579]
[1725831037698,21.93386976,129.32,129.27,6.5579]
[1725831038012,20.0,129.32,129.27,6.5579]
[1725831040391,20.0,129.32,129.27,6.0579]
[1725831041614,27.39544058,129.37,129.27,15.71345358]
[1725831041806,1.93327212,129.39,129.29,9.65555358]
[1725831042194,6.1838,129.37,129.27,6.0579]
[1725831042612,6.1838,129.37,129.3,9.65555358]
[1725831042692,29.4438,129.37,129.3,9.65555358]
[1725831043084,20.0,129.36,129.3,9.65555358]
[1725831043609,29.4434,129.38,129.3,9.65555358]
[1725831043794,29.4434,129.38,129.31,15.8828]
[1725831044887,45.0,129.37,129.31,15.8828]
[1725831045092,20.0,129.36,129.31,15.8828]
[1725831050910,20.0,129.36,129.32,6.4854]
[1725831051221,20.0,129.38,129.32,6.4854]
[1725831052035,44.54428889,129.41,129.33,9.65555358]
[1725831052197,50.72618889,129.41,129.33,9.65555358]
[1725831052526,40.61317128,129.41,129.33,9.65555358]
[1725831053106,1.93263245,129.4,129.33,9.65555358]
[1725831053305,40.61317128,129.41,129.33,9.65555358]
[1725831053306,1.93273534,129.39,129.33,9.65555358]
[1725831054917,20.0,129.4,129.33,9.65555358]
[1725831060424,21.9324563,129.4,129.34,15.0987]
[1725831062088,20.0,129.4,129.34,15.0987]
[1725831062217,20.0,129.4,129.26,13.54696161]
[1725831062218,6.1795,129.46,129.38,15.0987]
[1725831063096,29.4395,129.46,129.38,15.0987]
[1725831063626,15.80738368,129.49,129.39,16.99791199]
[1725831063948,15.80738368,129.49,129.41,9.65555358]
[1725831064219,15.80738368,129.49,129.43,9.65555358]
[1725831065323,15.80738368,129.49,129.44,6.2658]
[1725831065520,20.0,129.48,129.44,6.2658]
[1725831065699,15.80738368,129.49,129.44,6.2658]
[1725831072814,8.10759656,129.53,129.44,6.2658]
[1725831073010,65.0,129.52,129.44,6.2658]
[1725831075506,1.93084871,129.51,129.44,6.2658]
[1725831078907,65.0,129.52,129.44,6.2658]
[1725831079109,65.0,129.52,129.45,9.65555358]
[1725831079633,20.0,129.52,129.45,9.65555358]
[1725831081130,20.0,129.52,129.46,15.6816]
[1725831083730,6.1757,129.54,129.46,15.6816]
[1725831083936,14.64532899,129.57,129.46,15.6816]
[1725831083937,16.57592607,129.57,129.47,9.65555358]
[1725831084137,45.0,129.55,129.48,6.5891]
[1725831084326,6.1752,129.55,129.48,6.5891]
[1725831085450,6.1752,129.55,129.49,9.65555358]
[1725831085620,20.0,129.54,129.49,9.65555358]
[1725831086012,14.64532899,129.57,129.5,16.3227]
[1725831086117,20.81962899,129.57,129.5,16.3227]
[1725831087126,20.0,129.56,129.5,16.3227]
[1725831087723,14.64532899,129.57,129.51,9.65555358]
[1725831087931,6.1734,129.59,129.52,6.507]
[1725831088456,8.10246704,129.61,129.52,6.507]
[1725831088622,22.66111312,129.62,129.52,6.507]
[1725831088623,54.02271791,129.62,129.54,15.0839]
[1725831088814,45.04892299,129.62,129.54,15.0839]
[1725831089321,21.78892299,129.62,129.54,15.0839]
[1725831089516,19.8592182,129.62,129.54,15.0839]
[1725831090238,20.0,129.61,129.54,15.0839]
[1725831091723,20.0,129.61,129.55,9.65555358]
[1725831092225,13.6873182,129.62,129.56,6.0385]
[1725831092436,6.1709,129.64,129.56,6.0385]
[1725831092642,20.0,129.63,129.56,6.0385]
[1725831093632,7.80067711,129.66,129.59,9.65555358]
[1725831094159,1.63067711,129.66,129.57,26.03375358]
[1725831094333,6.17,129.66,129.57,26.03375358]
[1725831095014,1.92897546,129.67,129.59,9.65555358]
[1725831095015,6.1695,129.67,129.59,9.65555358]
[1725831095345,6.169,129.68,129.6,6.2264]
[1725831096342,20.0,129.67,129.6,6.2264]
[1725831096937,20.0,129.67,129.61,15.4336]
[1725831097139,20.0,129.67,129.61,25.08915358]
[1725831097844,6.1704,129.65,129.61,15.4336]
[1725831098023,1.9288996,129.64,129.61,15.4336]
[1725831098420,6.1706,129.65,129.61,15.4336]
[1725831098653,66.92897626,129.64,129.61,15.4336]
[1725831098861,66.92897626,129.64,129.6,6.2264]
[1725831099151,1.92899339,129.63,129.6,6.2264]
[1725831099533,26.1709,129.64,129.57,21.8198]
[1725831100239,1.92921504,129.63,129.57,21.8198]
[1725831100452,28.10005736,129.64,129.57,21.8198]
[1725831101239,26.1709,129.64,129.57,21.8198]
[1725831101860,20.0,129.64,129.57,21.8198]
[1725831102843,21.92887382,129.64,129.57,21.8198]
[1725831103040,1.92887382,129.64,129.57,21.8198]
[1725831104565,20.0,129.65,129.57,21.8198]
[1725831105742,20.0,129.66,129.57,21.8198]
[1725831105931,20.0,129.66,129.58,24.07235092]
[1725831107625,20.0,129.67,129.58,24.07235092]
[1725831107822,8.97379492,129.68,129.6,21.5015]
[1725831108083,6.1686,129.69,129.6,45.57385092]
[1725831108394,1.92838047,129.68,129.6,45.57385092]
[1725831108572,17.07087935,129.69,129.6,45.57385092]
[1725831109256,6.171,129.64,129.6,21.5015]
[1725831109428,8.10052161,129.63,129.57,6.3223]
[1725831109623,20.0,129.62,129.57,6.3223]
[1725831109853,1.92927626,129.61,129.57,6.3223]
[1725831110035,1.92942715,129.6,129.57,6.3223]
[1725831110963,21.92942715,129.6,129.57,6.3223]
[1725831111435,21.92942715,129.6,129.54,6.0515]
[1725831112143,21.92979939,129.59,129.54,6.0515]
[1725831112862,6.1739,129.58,129.54,6.0515]
[1725831113047,1.92995186,129.57,129.54,6.0515]
[1725831113553,53.10394437,129.58,129.54,6.0515]
[1725831114026,51.1739,129.58,129.54,6.0515]
[1725831115251,45.0,129.58,129.54,6.0515]
[1725831115578,26.1733,129.59,129.54,6.0515]
[1725831118557,1.92991681,129.58,129.54,6.0515]
[1725831118731,1.92986714,129.57,129.54,6.0515]
[1725831118936,21.92986714,129.59,129.54,6.0515]
[1725831119177,28.10316714,129.59,129.54,6.0515]
[1725831119545,20.0,129.59,129.54,6.0515]
[1725831124445,20.0,129.6,129.54,6.0515]
[1725831125866,1.92960436,129.59,129.54,6.0515]
[1725831126938,20.0,129.6,129.54,6.0515]
[1725831127552,20.0,129.61,129.54,6.0515]
[1725831129443,20.0,129.62,129.54,6.0515]
[1725831130241,1.92942839,129.61,129.54,6.0515]
[1725831130451,1.92942589,129.6,129.54,6.0515]
[1725831130660,26.1719,129.62,129.54,6.0515]
[1725831131558,1.92938268,129.61,129.54,6.0515]
[1725831131768,26.1719,129.62,129.54,6.0515]
[1725831132387,1.92938205,129.61,129.54,6.0515]
[1725831132755,26.1719,129.62,129.54,6.0515]
[1725831133072,1.92937482,129.61,129.54,6.0515]
[1725831133772,26.1719,129.62,129.54,6.0515]
[1725831134473,1.92938276,129.61,129.54,6.0515]
[1725831134646,20.0,129.62,129.54,6.0515]
[1725831138379,26.1719,129.62,129.54,6.0515]
[1725831140561,20.0,129.62,129.54,6.0515]
[1725831141066,26.1723,129.62,129.54,6.0515]
[1725831145064,20.0,129.62,129.54,6.0515]
[1725831146467,1.92932824,129.61,129.54,6.0515]
[1725831146670,45.0,129.61,129.54,6.0515]
[1725831147373,51.1723,129.61,129.54,6.0515]
[1725831148068,45.0,129.61,129.54,6.0515]
[1725831148574,21.92955662,129.62,129.54,6.0515]
[1725831148785,20.0,129.62,129.54,6.0515]
[1725831149092,28.10139234,129.62,129.54,6.0515]
[1725831149592,26.172,129.62,129.54,6.0515]
[1725831153036,20.0,129.62,129.55,9.63066327]
[1725831153179,25.6868206,129.68,129.58,16.1338]
[1725831153369,6.1708,129.65,129.58,16.1338]
[1725831153683,6.1715,129.63,129.58,16.1338]
[1725831153883,1.92939513,129.62,129.57,6.5903]
[1725831154568,46.92939513,129.62,129.57,6.5903]
[1725831154790,20.0,129.61,129.57,6.5903]
[1725831155894,1.92947166,129.6,129.57,6.5903]
[1725831156095,46.92947166,129.6,129.55,15.8994]
[1725831158085,6.1738,129.58,129.53,6.1877]
[1725831158294,8.10380043,129.58,129.53,6.1877]
[1725831158487,1.92999448,129.57,129.53,6.1877]
[1725831159897,21.92999448,129.57,129.53,6.1877]
[1725831163194,28.10429448,129.57,129.52,16.2548]
[1725831163602,21.92999448,129.57,129.52,16.2548]
[1725831163998,20.0,129.57,129.52,16.2548]
[1725831164197,20.0,129.59,129.52,16.2548]
[1725831164403,20.0,129.59,129.49,6.3949]
[1725831164404,8.10366464,129.58,129.49,6.3949]
[1725831164800,21.9303114,129.57,129.49,6.3949]
[1725831165409,45.0,129.56,129.49,6.3949]
[1725831166546,1.93037701,129.55,129.49,6.3949]
[1725831167213,46.93043802,129.56,129.49,6.3949]
[1725831167410,1.93038833,129.55,129.49,6.3949]
[1725831167612,1.93024258,129.54,129.49,6.3949]
[1725831167815,1.93031835,129.56,129.49,6.3949]
[1725831168017,46.93031835,129.56,129.49,6.3949]
[1725831168717,20.0,129.55,129.49,6.3949]
[1725831171400,20.0,129.56,129.49,6.3949]
[1725831185228,20.0,129.56,129.49,16.02556327]
[1725831185424,20.0,129.57,129.49,16.02556327]
[1725831186805,20.0,129.58,129.49,16.02556327]
[1725831187009,20.0,129.58,129.5,45.0]
[1725831187412,13.74143492,129.59,129.52,6.4552]
[1725831199814,13.74143492,129.59,129.53,9.63066327]
[1725831200033,13.74143492,129.59,129.54,15.1871]
[1725831200231,13.74143492,129.59,129.55,6.0308]
[1725831203641,9.50823937,129.63,129.55,6.0308]
[1725831203830,20.0,129.62,129.55,6.0308]
[1725831205145,11.43746699,129.61,129.55,6.0308]
[1725831205408,1.92969384,129.6,129.55,6.0308]
[1725831205726,46.92969384,129.6,129.55,6.0308]
[1725831205924,45.0,129.6,129.55,6.0308]
[1725831207019,46.92972538,129.6,129.55,6.0308]
[1725831208346,70.18972538,129.6,129.55,6.0308]
[1725831212845,70.18972538,129.6,129.54,15.1871]
[1725831215754,76.36252538,129.6,129.54,15.1871]
[1725831216272,49.4335,129.59,129.54,15.1871]
[1725831216430,70.19005443,129.58,129.52,6.3021]
[1725831216627,1.93011122,129.57,129.52,6.3021]
[1725831218207,70.1901098,129.58,129.52,6.3021]
[1725831220264,1.93013693,129.57,129.52,6.3021]
[1725831226640,45.19013693,129.57,129.52,6.3021]
[1725831226844,43.26,129.57,129.52,6.3021]
[1725831230250,45.19020621,129.57,129.52,6.3021]
[1725831234070,43.26,129.57,129.52,6.3021]
[1725831236749,45.19024461,129.57,129.52,6.3021]
[1725831237975,43.26,129.57,129.52,6.3021]
[1725831238567,45.19024627,129.57,129.52,6.3021]
[1725831244172,21.93024627,129.57,129.52,6.3021]
[1725831244475,45.19024558,129.58,129.52,6.3021]
[1725831245578,45.0,129.57,129.52,6.3021]
[1725831248091,32.76823937,129.6,129.53,9.63066327]
[1725831248378,23.26,129.6,129.53,9.63066327]
[1725831249367,20.0,129.59,129.53,9.63066327]
[1725831249880,20.0,129.59,129.54,15.7008]
[1725831250074,21.92971814,129.6,129.54,15.7008]
[1725831254405,20.0,129.6,129.54,15.7008]
[1725831260081,21.92953236,129.6,129.54,15.7008]
[1725831260894,20.0,129.6,129.54,15.7008]
[1725831261667,20.0,129.6,129.55,6.1526]
[1725831262077,17.91004516,129.61,129.55,6.1526]
[1725831264669,17.91004516,129.61,129.55,15.78326327]
[1725831269688,17.91004516,129.61,129.56,15.9152]
[1725831279083,1.92942449,129.6,129.56,15.9152]
[1725831279405,17.91004516,129.61,129.56,15.9152]
[1725831279798,19.83949169,129.61,129.56,15.9152]
[1725831279996,1.92944653,129.6,129.56,15.9152]
[1725831289099,17.91004516,129.61,129.56,15.9152]
[1725831291880,2.42696169,129.66,129.6,6.6392]
[1725831292374,1.92855162,129.65,129.6,6.6392]
[1725831292716,22.8772331,129.68,129.6,6.6392]
[1725831292721,22.2987116,129.67,129.6,6.6392]
[1725831294327,20.03916054,129.66,129.6,6.6392]
[1725831296504,1.92880863,129.65,129.6,6.6392]
[1725831296823,1.92889799,129.64,129.6,6.6392]
[1725831297692,1.92888701,129.65,129.6,6.6392]
[1725831297916,1.92888701,129.64,129.6,6.6392]
[1725831298910,1.92888701,129.64,129.59,15.5665]
[1725831300526,86.58787443,129.65,129.59,15.5665]
[1725831300820,1.9291416,129.64,129.59,15.5665]
[1725831302621,86.58781684,129.65,129.59,15.5665]
[1725831308323,86.56920754,129.65,129.59,15.5665]
[1725831337147,39.64011081,129.65,129.6,6.1875]
[1725831338661,19.64011081,129.65,129.61,16.5116]
[1725831339083,4.28486155,129.69,129.61,16.5116]
[1725831339084,2.35604639,129.69,129.63,6.3244]
[1725831339163,21.45026748,129.69,129.63,6.3244]
[1725831340141,21.45026748,129.69,129.64,16.5116]
[1725831340930,21.45026748,129.69,129.65,6.3244]
[1725831341228,0.8494839,129.71,129.65,6.3244]
[1725831342349,0.8494839,129.71,129.65,15.95506327]
[1725831342643,0.8494839,129.71,129.66,17.0194086]
[1725831342831,0.8494839,129.71,129.67,6.5926]
[1725831343028,0.8494839,129.71,129.67,16.22326327]
[1725831344447,0.8494839,129.71,129.67,6.5926]
[1725831344649,0.8494839,129.71,129.67,16.22326327]
[1725831349047,0.8494839,129.71,129.69,9.63066327]
[1725831350247,0.8494839,129.71,129.69,10.69676055]
[1725831350557,0.8494839,129.71,129.69,9.63066327]
[1725831352353,0.8494839,129.71,129.7,6.0482]
[1725831354263,0.8494839,129.71,129.7,22.2823]
[1725831354441,0.8494839,129.71,129.7,23.34749106]
[1725831354639,0.8494839,129.71,129.7,22.2823]
[1725831354846,0.8494839,129.71,129.7,67.2823]
[1725831355964,0.8494839,129.71,129.7,22.2823]
[1725831356261,260.4,129.81,129.7,23.34777957]
[1725831356446,20.0,129.8,129.75,9.63066327]
[1725831356853,17.20100434,129.82,129.75,9.63066327]
[1725831358037,15.2743,129.82,129.75,9.63066327]
[1725831358251,4.5494839,129.84,129.77,9.63066327]
[1725831358470,0.8494839,129.84,129.77,9.63066327]
[1725831359764,0.8494839,129.84,129.79,9.63066327]
[1725831360051,0.8494839,129.84,129.79,31.22896327]
[1725831360444,0.8494839,129.84,129.81,9.63066327]
[1725831360857,0.8494839,129.84,129.83,9.63066327]
[1725831361055,0.8494839,129.84,129.83,32.43156327]
[1725831362309,0.8494839,129.84,129.83,22.8009]
[1725831362635,0.8494839,129.84,129.83,32.43156327]
[1725831363256,0.8494839,129.84,129.79,22.4897]
[1725831364338,0.8494839,129.84,129.76,9.63066327]
[1725831364537,20.8494839,129.84,129.75,22.6759]
[1725831364736,1.92626053,129.83,129.75,32.30656327]
[1725831364944,1.92626053,129.82,129.75,32.30656327]
[1725831366349,22.77574167,129.84,129.75,32.30656327]
[1725831369461,22.77574167,129.84,129.75,22.6759]
[1725831369658,57.3685,129.83,129.73,9.63066327]
[1725831369867,21.92662969,129.82,129.73,9.63066327]
[1725831370052,21.92662969,129.82,129.74,9.63066327]
[1725831370254,20.0,129.82,129.74,9.63066327]
[1725831370457,21.92655567,129.82,129.74,9.63066327]
[1725831370658,45.0,129.81,129.74,9.63066327]
[1725831372397,1.92660419,129.8,129.74,9.63066327]
[1725831372480,46.92671025,129.81,129.74,9.63066327]
[1725831373565,53.08961025,129.81,129.74,9.63066327]
[1725831374063,46.92671025,129.81,129.74,9.63066327]
[1725831375155,46.92671025,129.81,129.72,21.9335]
[1725831375156,20.0,129.8,129.72,21.9335]
[1725831375360,1.92679818,129.79,129.73,9.63066327]
[1725831378771,1.92679818,129.79,129.72,21.9335]
[1725831379070,45.0,129.79,129.72,21.9335]
[1725831379374,20.0,129.78,129.72,21.9335]
[1725831381584,20.0,129.78,129.72,15.2922]
[1725831386460,20.0,129.79,129.72,15.2922]
[1725831387088,18.1939408,129.82,129.75,9.63066327]
[1725831387294,20.0,129.81,129.75,9.63066327]
[1725831394973,20.0,129.82,129.75,9.63066327]
[1725831395395,20.0,129.82,129.77,9.63066327]
[1725831396170,13.13832777,129.83,129.77,9.63066327]
[1725831397187,13.13832777,129.83,129.76,16.4734]
[1725831397457,13.13832777,129.83,129.76,26.10406327]
[1725831397640,13.13832777,129.83,129.76,16.4734]
[1725831397770,13.13832777,129.83,129.76,26.10406327]
[1725831401092,13.13832777,129.83,129.77,45.0]
[1725831401275,13.13832777,129.83,129.76,26.10406327]
[1725831401487,13.13832777,129.83,129.78,9.63066327]
[1725831401682,0.8494839,129.84,129.78,9.63066327]
[1725831402084,0.8494839,129.84,129.78,15.90316327]
[1725831403598,0.8494839,129.84,129.8,9.63066327]
[1725831406408,0.8494839,129.84,129.78,15.90316327]
[1725831407448,0.8494839,129.84,129.78,6.2725]
[1725831408598,89.0694839,129.84,129.78,6.2725]
[1725831409911,65.8494839,129.84,129.78,6.2725]
[1725831411284,89.0694839,129.84,129.78,6.2725]
[1725831411900,65.8494839,129.84,129.78,6.2725]
[1725831413010,20.8494839,129.84,129.78,15.90316327]
[1725831413308,0.8494839,129.84,129.78,15.90316327]
[1725831414115,0.8494839,129.84,129.78,9.63066327]
[1725831414300,69.0694839,129.84,129.76,26.10406327]
[1725831415521,0.8494839,129.84,129.76,26.10406327]
[1725831416586,0.8494839,129.84,129.76,25.60406327]
[1725831420226,7.0110839,129.84,129.75,6.0676]
[1725831420432,106.39641924,129.83,129.73,16.1852]
[1725831420720,1.92658456,129.82,129.73,25.81586327]
[1725831421214,23.22,129.81,129.73,25.81586327]
[1725831421518,1.92674432,129.8,129.73,25.81586327]
[1725831422421,25.14674388,129.81,129.73,25.81586327]
[1725831423018,23.22,129.81,129.73,25.81586327]
[1725831423644,112.55885191,129.83,129.73,25.81586327]
[1725831423934,112.55885191,129.83,129.74,45.0]
[1725831425515,110.6322,129.83,129.75,9.63066327]
[1725831425720,104.4703,129.83,129.75,9.63066327]
[1725831428658,1.92641639,129.82,129.75,9.63066327]
[1725831428845,1.92641639,129.82,129.73,25.81586327]
[1725831430528,121.21478407,129.83,129.73,25.81586327]
[1725831430725,23.22,129.79,129.7,15.5987]
[1725831431038,1.92704194,129.78,129.7,25.22936327]
[1725831431214,21.92704194,129.78,129.7,15.5987]
[1725831431419,21.92704194,129.78,129.7,25.22936327]
[1725831435763,20.0,129.78,129.7,25.22936327]
[1725831436549,1.92703771,129.77,129.7,9.63066327]
[1725831436721,1.92713128,129.76,129.7,9.63066327]
[1725831438541,16.3497,129.75,129.7,9.63066327]
[1725831438728,16.3497,129.75,129.68,10.97321541]
[1725831443648,16.3497,129.75,129.68,9.63066327]
[1725831445154,1.92745209,129.74,129.68,9.63066327]
[1725831445336,1.92763634,129.73,129.66,9.63066327]
[1725831446168,1.92765081,129.73,129.64,16.4674]
[1725831446226,46.92765081,129.73,129.66,9.63066327]
[1725831446540,15.5631,129.72,129.66,9.63066327]
[1725831446857,1.92793272,129.71,129.66,9.63066327]
[1725831447158,37.49103001,129.72,129.64,9.63066327]
[1725831447359,35.5631,129.72,129.64,9.63066327]
[1725831447859,1.92793005,129.71,129.64,9.63066327]
[1725831448529,35.5631,129.72,129.64,9.63066327]
[1725831448731,35.5631,129.72,129.66,9.63066327]
[1725831451336,15.5631,129.72,129.66,9.63066327]
[1725831456833,15.5631,129.72,129.62,7.87246287]
[1725831457035,15.5631,129.72,129.66,9.63066327]
[1725831471868,1.92786762,129.71,129.66,9.63066327]
[1725831472172,1.92797112,129.7,129.64,9.63066327]
[1725831472344,8.58847112,129.7,129.64,9.63066327]
[1725831476273,15.0932,129.69,129.64,9.63066327]
[1725831477877,17.02129368,129.69,129.64,9.63066327]
[1725831478090,15.0932,129.69,129.64,9.63066327]
[1725831484754,15.0932,129.69,129.66,9.63066327]
[1725831485655,22.9369,129.73,129.68,9.63066327]
[1725831498182,46.1569,129.73,129.68,9.63066327]
[1725831498389,22.9369,129.73,129.67,9.63066327]
[1725831502187,1.92764915,129.72,129.61,1.34389258]
[1725831502681,6.1174,129.7,129.61,1.34389258]
[1725831502701,17.26505781,129.69,129.61,1.34389258]
[1725831502987,17.26505781,129.69,129.59,6.212]
[1725831503185,17.26505781,129.69,129.62,9.63066327]
[1725831504359,17.26505781,129.69,129.59,1.34386866]
[1725831504689,17.26505781,129.69,129.62,9.63066327]
[1725831505984,17.26505781,129.69,129.59,1.34386866]
[1725831506181,15.7446,129.66,129.59,10.97453193]
[1725831506491,1.92879699,129.65,129.59,10.97453193]
[1725831506663,1.92879873,129.64,129.59,10.97453193]
[1725831507695,1.92888979,129.65,129.59,10.97453193]
[1725831507871,1.92887458,129.64,129.59,9.63066327]
[1725831509124,1.92886189,129.65,129.59,9.63066327]
[1725831509271,1.9288624,129.64,129.59,9.63066327]
[1725831512574,17.67354884,129.66,129.59,9.63066327]
[1725831515791,17.67354884,129.66,129.56,1.34425757]
[1725831515792,17.67354884,129.66,129.58,9.63066327]
[1725831518275,17.67354884,129.66,129.58,9.13066327]
[1725831519976,17.67354884,129.66,129.6,9.63066327]
[1725831523200,15.7446,129.66,129.6,9.63066327]
[1725831524800,15.7446,129.66,129.62,9.63066327]
[1725831525289,15.7446,129.66,129.64,9.63066327]
[1725831526884,15.7446,129.66,129.56,7.38695757]
[1725831527081,1.92881328,129.65,129.59,9.63066327]
[1725831527503,1.92879506,129.64,129.59,9.63066327]
[1725831528197,15.7446,129.66,129.59,9.63066327]
[1725831528602,1.92867682,129.65,129.59,9.63066327]
[1725831528908,1.92877088,129.64,129.59,9.63066327]
[1725831529612,17.67336961,129.66,129.59,9.63066327]
[1725831541420,45.0,129.65,129.57,9.63066327]
[1725831541922,1.92919554,129.64,129.57,9.63066327]
[1725831542292,46.92919348,129.65,129.57,9.63066327]
[1725831542698,1.92919348,129.65,129.57,9.63066327]
[1725831542903,20.0,129.65,129.57,9.63066327]
[1725831543522,1.92903228,129.64,129.57,9.63066327]
[1725831544094,21.92903253,129.65,129.57,9.63066327]
[1725831544319,20.0,129.65,129.57,9.63066327]
[1725831545317,1.9289366,129.64,129.57,9.63066327]
[1725831545518,1.9289366,129.64,129.58,45.0]
[1725831547128,1.9289366,129.64,129.59,9.63066327]
[1725831547921,15.7446,129.66,129.61,9.63066327]
[1725831548291,8.81973315,129.68,129.61,9.63066327]
[1725831548497,8.81973315,129.68,129.61,11.17755317]
[1725831548997,1.9284537,129.67,129.61,9.63066327]
[1725831549212,1.9284537,129.67,129.61,11.17755317]
[1725831549421,1.9284537,129.67,129.61,9.63066327]
[1725831550024,1.9284537,129.67,129.61,11.1774267]
[1725831550319,1.9284537,129.67,129.61,9.63066327]
[1725831550710,8.81973315,129.68,129.61,11.1774267]
[1725831550923,8.81973315,129.68,129.61,9.63066327]
[1725831551098,8.81973315,129.68,129.61,11.1774267]
[1725831551414,1.92849816,129.67,129.61,9.63066327]
[1725831551631,1.92849816,129.67,129.61,11.1774267]
[1725831551812,8.81973315,129.68,129.61,9.63066327]
[1725831552008,1.92849158,129.67,129.61,11.1774267]
[1725831552199,1.92849158,129.67,129.61,9.63066327]
[1725831552400,1.92849158,129.67,129.61,11.1774267]
[1725831552718,8.81973315,129.68,129.61,9.63066327]
[1725831553224,8.81973315,129.68,129.61,11.1774267]
[1725831553602,8.81973315,129.68,129.61,9.63066327]
[1725831553806,8.81973315,129.68,129.61,11.1774267]
[1725831554125,8.81973315,129.68,129.61,9.63066327]
[1725831554327,15.8746,129.69,129.61,11.1774267]
[1725831554497,1.92841274,129.68,129.61,9.63066327]
[1725831554703,1.92848226,129.67,129.61,11.1774267]
[1725831554915,1.92848226,129.67,129.61,9.63066327]
[1725831555222,15.8746,129.69,129.61,11.1774267]
[1725831555421,15.8746,129.69,129.61,9.63066327]
[1725831555724,15.8746,129.69,129.61,11.1774267]
[1725831555917,15.8746,129.69,129.61,9.63066327]
[1725831556925,1.92834453,129.68,129.61,9.63066327]
[1725831557228,17.80305364,129.69,129.61,9.63066327]
[1725831557723,15.8746,129.69,129.61,9.63066327]
[1725831557928,15.8746,129.69,129.6,6.0328]
[1725831558230,15.8746,129.69,129.59,16.6495]
[1725831558231,98.96815044,129.68,129.59,16.6495]
[1725831558527,1.92894576,129.67,129.57,6.1444]
[1725831558829,33.96867891,129.67,129.57,6.1444]
[1725831559000,65.0,129.66,129.57,15.77506327]
[1725831559213,1.92894423,129.65,129.57,15.77506327]
[1725831559879,65.0,129.66,129.57,15.77506327]
[1725831559892,20.0,129.66,129.57,15.77506327]
[1725831559902,21.92887553,129.67,129.57,15.77506327]
[1725831560629,21.92887553,129.67,129.59,9.63066327]
[1725831561529,20.0,129.67,129.59,9.63066327]
[1725831561829,21.92872852,129.68,129.59,9.63066327]
[1725831562418,20.0,129.68,129.59,9.63066327]
[1725831562777,1.92868402,129.67,129.59,9.63066327]
[1725831562935,20.0,129.68,129.59,9.63066327]
[1725831562936,21.92868707,129.68,129.59,9.63066327]
[1725831565436,21.92868707,129.68,129.59,25.06496327]
[1725831570018,1.92868165,129.67,129.59,25.06496327]
[1725831570640,1.92868165,129.67,129.59,15.4343]
[1725831570818,6.17,129.66,129.59,15.4343]
[1725831571019,21.92903558,129.65,129.59,15.4343]
[1725831571219,1.92904044,129.64,129.59,15.4343]
[1725831574733,17.80369456,129.69,129.59,15.4343]
[1725831574928,20.0,129.68,129.59,15.4343]
[1725831575740,20.0,129.68,129.6,9.63066327]
[1725831575911,45.0,129.67,129.6,9.63066327]
[1725831576115,43.22,129.68,129.6,9.63066327]
[1725831576345,1.92867955,129.67,129.6,9.63066327]
[1725831576938,20.0,129.68,129.6,9.63066327]
[1725831577146,20.0,129.68,129.61,6.4889]
[1725831577435,15.8746,129.69,129.61,6.4889]
[1725831578724,20.0,129.68,129.61,6.4889]
[1725831583150,20.0,129.69,129.61,6.4889]